bitfinex-derivatives/quotes_SOLF0:USTF0_20250409
["timestamp","ask_amount","ask_price","bid_price","bid_amount"]
[1744225237505,0.06050103,117.96,117.93,0.0621311]
[1744225239002,0.06050103,117.96,117.95,8.4822]
[1744225240109,0.06050103,117.96,117.94,8.4827]
[1744225240307,0.06050103,117.96,117.93,23.92161708]
[1744225240308,8.54210103,117.96,117.93,0.0621311]
[1744225240509,0.06050103,117.96,117.93,0.0621311]
[1744225240697,8.4829,117.94,117.93,0.0621311]
[1744225240899,0.06050103,117.96,117.92,26.86847093]
[1744225241193,8.4836,117.93,117.92,26.86847093]
[1744225241403,63.86,117.93,117.91,66.42738794]
[1744225241598,63.86,117.93,117.91,37.96328794]
[1744225241904,8.4843,117.92,117.91,37.96328794]
[1744225242105,8.4843,117.92,117.91,38.01907295]
[1744225242308,0.06209493,117.93,117.91,38.01907295]
[1744225242804,8.54619493,117.93,117.91,0.05578501]
[1744225243606,0.06209493,117.93,117.91,0.05578501]
[1744225244109,8.54609493,117.93,117.91,0.05578501]
[1744225244311,0.06209493,117.93,117.91,0.05578501]
[1744225245096,8.4843,117.92,117.91,0.05578501]
[1744225246014,0.06209493,117.93,117.91,0.05578501]
[1744225246509,0.06209493,117.93,117.91,8.54048501]
[1744225246713,0.06209493,117.93,117.91,0.05578501]
[1744225246912,8.4843,117.92,117.91,0.05578501]
[1744225247213,0.06209493,117.93,117.91,0.05578501]
[1744225248010,0.06209493,117.93,117.91,70.54028501]
[1744225248212,0.06209493,117.93,117.91,62.05578501]
[1744225248511,0.06209493,117.93,117.91,70.54048501]
[1744225249013,0.06209493,117.93,117.91,62.05578501]
[1744225249514,0.06209493,117.93,117.92,8.4843]
[1744225251406,674.48,118.0,117.95,8.4822]
[1744225251601,674.48,118.0,117.93,23.85948598]
[1744225251911,674.48,118.0,117.92,8.6882]
[1744225252317,8.4813,117.97,117.92,8.6882]
[1744225252507,8.53525549,117.97,117.95,0.05450639]
[1744225252709,0.05395549,117.97,117.95,0.05450639]
[1744225252912,8.4815,117.96,117.95,0.05450639]
[1744225254211,0.05395549,117.97,117.9,4.3536]
[1744225254409,0.05395549,117.97,117.89,23.85948598]
[1744225254607,8.4832,117.94,117.91,8.485]
[1744225254814,63.88,117.98,117.89,23.85948598]
[1744225255121,63.88,117.98,117.9,8.4854]
[1744225255420,0.05709028,117.95,117.92,0.06296959]
[1744225256806,8.53969028,117.95,117.92,0.06296959]
[1744225257011,0.05709028,117.95,117.92,0.06296959]
[1744225257428,8.53969028,117.95,117.92,0.06296959]
[1744225257619,0.05709028,117.95,117.92,0.06296959]
[1744225258508,8.4836,117.93,117.92,0.06296959]
[1744225258713,63.88,117.93,117.92,0.06296959]
[1744225259021,72.3636,117.93,117.92,0.06296959]
[1744225259232,63.88,117.93,117.92,0.06296959]
[1744225260224,0.05709028,117.95,117.92,0.06296959]
[1744225260419,359.0,118.07,117.92,23.92245557]
[1744225260420,87.73948598,118.03,117.92,23.92245557]
[1744225260616,8.4791,118.0,117.96,8.481]
[1744225260821,8.4791,118.0,117.94,23.85948598]
[1744225261017,63.88,118.07,117.98,23.85948598]
[1744225261214,23.85948598,118.04,117.95,62.0]
[1744225261422,610.66,118.04,117.96,23.85948598]
[1744225261620,0.05872537,118.01,117.98,0.05722889]
[1744225261831,0.05872537,118.01,117.98,23.91671487]
[1744225262319,0.05872537,118.01,118.0,8.4786]
[1744225262826,140.65726418,118.11,118.0,23.85948598]
[1744225263024,1.54243134,118.1,118.0,23.85948598]
[1744225263324,8.4732,118.08,118.03,8.4761]
[1744225263632,63.88,118.07,118.0,23.85948598]
[1744225263832,63.88,118.07,118.01,8.4778]
[1744225264130,0.05884649,118.05,118.02,0.05789236]
[1744225264329,8.53424649,118.05,118.02,0.05789236]
[1744225264515,63.93884649,118.05,118.02,0.05789236]
[1744225265019,0.05884649,118.05,118.02,23.91737834]
[1744225265428,0.05884649,118.05,118.03,8.4757]
[1744225265626,63.86,118.1,118.02,23.91737834]
[1744225266134,72.3318,118.1,118.02,23.85948598]
[1744225266324,8.4718,118.1,118.04,23.85948598]
[1744225266526,8.4718,118.1,118.06,8.4737]
[1744225266725,8.4718,118.1,118.06,0.06377512]
[1744225266923,8.4722,118.09,118.06,0.06377512]
[1744225267232,63.86,118.08,118.06,0.06377512]
[1744225268328,63.84,118.12,118.06,0.06377512]
[1744225268533,63.84,118.12,118.06,23.9232611]
[1744225268722,63.84,118.12,118.09,8.4715]
[1744225269121,63.84,118.12,118.09,0.05379135]
[1744225271330,63.84,118.12,118.11,8.4707]
[1744225272129,63.46,118.17,118.13,8.4688]
[1744225272634,63.46,118.17,118.14,0.05470047]
[1744225272836,63.46,118.17,118.1,23.85948598]
[1744225273038,610.22,118.19,118.14,0.05878869]
[1744225273237,63.46,118.21,118.14,0.05878869]
[1744225273431,63.46,118.21,118.15,62.0]
[1744225273937,63.46,118.21,118.17,0.06114507]
[1744225274238,8.4657,118.18,118.17,0.06114507]
[1744225274734,8.4672,118.16,118.11,16.8362]
[1744225274937,63.44,118.15,118.05,4.4767]
[1744225275139,63.44,118.15,118.05,13.0326]
[1744225275344,63.44,118.15,118.06,7.17]
[1744225275639,23.85948598,118.14,118.06,7.17]
[1744225275844,0.06207967,118.12,118.09,0.05465765]
[1744225277029,8.53237967,118.12,118.09,0.05465765]
[1744225277238,0.06207967,118.12,118.09,0.05465765]
[1744225277440,0.06207967,118.12,118.09,8.52665765]
[1744225277638,0.06207967,118.12,118.09,0.05465765]
[1744225278342,23.92156565,118.12,118.09,0.05465765]
[1744225278544,8.4714,118.1,118.09,0.05465765]
[1744225279233,8.4735,118.08,118.04,6.13]
[1744225279437,63.42,118.09,118.04,6.13]
[1744225280541,0.05952377,118.08,118.05,0.06130269]
[1744225280734,0.05952377,118.08,118.06,8.4743]
[1744225280936,0.05952377,118.08,118.05,0.06130269]
[1744225281335,0.05952377,118.08,118.06,8.4742]
[1744225281640,0.05952377,118.08,118.05,0.06130269]
[1744225281833,0.05952377,118.08,118.05,8.53570269]
[1744225282030,0.05952377,118.08,118.05,0.06130269]
[1744225282236,673.46,118.17,118.08,23.85948598]
[1744225282437,673.46,118.17,118.09,4.2669]
[1744225283147,673.46,118.17,118.1,23.85948598]
[1744225283344,0.05721355,118.14,118.12,0.06417067]
[1744225283732,0.05721355,118.14,118.05,145.3753]
[1744225283936,23.85948598,118.11,118.04,4.5544]
[1744225284136,63.42,118.1,118.04,4.5544]
[1744225284539,23.85948598,118.09,118.03,33.88]
[1744225285150,0.06440411,118.07,118.05,0.05515561]
[1744225287045,8.53800411,118.07,118.05,0.05515561]
[1744225287245,0.06440411,118.07,118.05,0.05515561]
[1744225287643,8.4743,118.06,118.05,0.05515561]
[1744225288354,0.06440411,118.07,118.05,0.05515561]
[1744225288655,63.42,118.14,118.05,0.05515561]
[1744225288954,63.42,118.14,118.08,8.4725]
[1744225289142,8.4708,118.11,118.06,8.3364]
[1744225289342,63.42,118.14,118.08,8.4725]
[1744225289546,8.4706,118.12,118.08,8.4725]
[1744225289746,0.05628918,118.12,118.1,0.05927164]
[1744225290343,610.0,118.16,118.1,0.05927164]
[1744225290547,63.42,118.18,118.11,8.4707]
[1744225290945,87.27948598,118.18,118.06,173.29588598]
[1744225291246,23.85948598,118.14,118.06,149.4364]
[1744225291445,63.42,118.13,118.06,8.3364]
[1744225291645,63.42,118.13,118.09,0.05644731]
[1744225293558,8.4711,118.11,118.09,0.05644731]
[1744225294448,8.4703,118.12,118.09,0.05644731]
[1744225294949,63.42,118.13,118.09,0.05644731]
[1744225295457,38.67716694,118.12,118.09,0.05644731]
[1744225295760,38.67716694,118.12,118.05,33.88]
[1744225295964,8.4747,118.06,118.05,33.88]
[1744225297657,63.47713824,118.07,118.05,33.88]
[1744225298162,71.95093824,118.07,118.04,0.05998516]
[1744225299260,63.47713824,118.07,118.04,0.05998516]
[1744225299864,8.475,118.05,118.04,0.05998516]
[1744225300063,38.67716694,118.06,118.0,1.39]
[1744225300262,8.4779,118.01,118.0,1.39]
[1744225300466,8.4779,118.01,118.0,8.55]
[1744225300666,8.4779,118.01,118.0,7.16]
[1744225303968,8.4786,118.0,117.99,0.06420206]
[1744225304561,8.4786,118.0,117.99,0.00410206]
[1744225304964,63.1443543,118.02,117.99,0.00410206]
[1744225305160,0.0643543,118.02,117.99,0.00410206]
[1744225305363,0.0643543,118.02,118.0,8.4781]
[1744225305661,0.0643543,118.02,118.0,8.5056]
[1744225305861,38.67716694,118.09,118.0,8.5056]
[1744225306565,969.16,118.13,118.0,8.5056]
[1744225306566,38.67716694,118.11,118.0,8.5056]
[1744225306769,38.67716694,118.09,118.0,8.5056]
[1744225306973,0.05630795,118.07,118.04,0.0610988]
[1744225308874,8.475,118.05,118.04,0.0610988]
[1744225309875,0.05630795,118.07,118.04,0.0610988]
[1744225310365,0.05630795,118.07,118.04,8.5367988]
[1744225310765,0.05630795,118.07,118.04,0.0610988]
[1744225312665,8.53020795,118.07,118.04,0.0610988]
[1744225312869,0.05630795,118.07,118.04,0.0610988]
[1744225313075,0.05630795,118.07,118.04,4.4222988]
[1744225313575,0.05630795,118.07,118.05,8.4749]
[1744225313767,26.8739327,118.17,118.04,4.4222988]
[1744225314075,38.67716694,118.12,118.04,4.3612]
[1744225314575,38.67716694,118.12,118.02,63.08]
[1744225314966,0.05656115,118.08,118.06,8.53220192]
[1744225315160,0.05656115,118.08,118.06,0.05830192]
[1744225315668,0.05656115,118.08,118.07,8.4736]
[1744225315973,8.4704,118.12,118.06,9.10040192]
[1744225316175,8.4704,118.12,118.08,8.4724]
[1744225316363,359.0,118.06,117.92,92.73379702]
[1744225316560,422.08,118.05,117.94,23.80348728]
[1744225316771,8.4792,118.0,117.93,13.4636]
[1744225316968,23.80348728,118.02,117.99,0.0645868]
[1744225317172,23.80348728,118.02,117.93,13.4636]
[1744225317770,359.0,118.05,117.94,63.08]
[1744225317771,23.80348728,118.03,117.94,63.08]
[1744225317975,23.80348728,118.0,117.93,76.5436]
[1744225318177,23.80348728,118.0,117.93,85.0272]
[1744225318377,0.05425121,117.99,117.96,0.05375652]
[1744225319372,23.80348728,118.05,117.97,62.0]
[1744225319681,8.4801,117.98,117.95,41.44]
[1744225319979,38.77386292,118.01,117.95,41.44]
[1744225320380,38.77386292,118.03,117.95,49.9219]
[1744225320584,8.4783,118.01,117.97,0.05893004]
[1744225320883,38.77386292,118.03,117.98,0.06040206]
[1744225321181,8.4787,118.0,117.98,0.06040206]
[1744225321382,38.77386292,118.03,117.98,0.06040206]
[1744225321574,38.77386292,118.05,117.98,0.06040206]
[1744225321896,38.77386292,118.05,117.95,35.3]
[1744225322074,38.77386292,118.05,118.0,0.05799249]
[1744225322475,38.77386292,118.07,118.01,62.0]
[1744225322682,38.77386292,118.11,118.01,62.0]
[1744225322883,101.87386292,118.14,118.05,8.475]
[1744225322884,8.4719,118.1,118.05,8.475]
[1744225323075,8.4719,118.1,118.05,8.53537248]
[1744225323274,38.77386292,118.13,118.05,8.475]
[1744225323485,8.4713,118.11,118.06,8.53493594]
[1744225323879,38.77386292,118.13,118.07,8.4731]
[1744225324474,8.4711,118.11,118.09,0.06361392]
[1744225324688,38.77386292,118.15,118.09,0.06361392]
[1744225324990,8.47,118.12,118.09,0.05614907]
[1744225325196,649.11386292,118.17,118.09,0.05614907]
[1744225325380,63.08,118.19,118.07,38.77386292]
[1744225325571,63.08,118.19,118.12,0.06486519]
[1744225325776,38.77386292,118.17,118.12,0.06486519]
[1744225325974,38.77386292,118.15,118.12,62.06486519]
[1744225326176,38.77386292,118.15,118.12,0.06486519]
[1744225327188,63.08,118.19,118.12,0.06486519]
[1744225327381,38.77386292,118.18,118.12,0.06486519]
[1744225327582,38.77386292,118.16,118.12,0.06486519]
[1744225327780,63.08,118.19,118.12,0.06486519]
[1744225327974,38.77386292,118.16,118.12,0.06486519]
[1744225330588,8.4692,118.14,118.12,0.06486519]
[1744225330789,38.77386292,118.18,118.12,0.06486519]
[1744225330978,38.77386292,118.2,118.12,0.06486519]
[1744225331188,40.24703468,118.26,118.12,0.06486519]
[1744225331381,38.77386292,118.25,118.13,38.77386292]
[1744225331574,25.3762,118.28,118.13,38.77386292]
[1744225331575,38.77386292,118.26,118.18,0.05842403]
[1744225331988,8.4646,118.2,118.15,38.77386292]
[1744225332178,38.77386292,118.22,118.21,0.05423771]
[1744225332379,38.77386292,118.22,118.14,8.6783]
[1744225333084,8.4661,118.18,118.14,8.6783]
[1744225333279,38.77386292,118.23,118.14,8.6783]
[1744225333477,0.06076811,118.17,118.15,0.06506378]
[1744225333675,38.77386292,118.21,118.14,8.6783]
[1744225333977,0.06074286,118.17,118.15,62.05966545]
[1744225334189,8.52724286,118.17,118.15,62.05966545]
[1744225334893,8.4671,118.16,118.15,0.05966545]
[1744225335188,0.06074286,118.17,118.15,0.05966545]
[1744225335887,8.52754286,118.17,118.15,0.05966545]
[1744225336188,0.06074286,118.17,118.15,0.05966545]
[1744225337990,0.06074286,118.17,118.15,62.05966545]
[1744225339090,0.06074286,118.17,118.15,0.05966545]
[1744225339390,8.4671,118.16,118.15,0.05966545]
[1744225340483,8.4685,118.14,118.13,1.39]
[1744225342695,38.77386292,118.15,118.12,9.818e-05]
[1744225342880,38.77386292,118.14,118.1,40.0]
[1744225343085,38.77386292,118.11,118.1,40.0]
[1744225343292,109.92456292,118.11,118.1,39.81817934]
[1744225343491,109.92456292,118.11,118.1,26.32867934]
[1744225343789,109.91386292,118.11,118.02,4.6224]
[1744225343983,38.77386292,118.08,118.02,4.6224]
[1744225344183,8.4754,118.05,118.02,4.6224]
[1744225344379,0.05926139,118.06,118.04,0.05654558]
[1744225344586,0.05926139,118.06,118.02,4.6224]
[1744225344791,0.0644937,118.05,118.04,0.05994519]
[1744225344992,38.77386292,118.09,118.02,4.6224]
[1744225345187,8.4747,118.06,118.03,0.0534722]
[1744225345392,8.53834159,118.06,118.03,0.0534722]
[1744225345592,0.06364159,118.06,118.03,0.0534722]
[1744225346594,38.77386292,118.11,118.03,0.0534722]
[1744225346791,8.4747,118.06,118.03,0.0534722]
[1744225347094,38.77386292,118.07,118.02,4.6224]
[1744225347301,8.4772,118.02,117.99,149.9032]
[1744225347482,8.4772,118.02,117.99,8.8032]
[1744225347686,8.54163177,118.02,117.99,8.86001454]
[1744225348190,0.06443177,118.02,117.99,8.86001454]
[1744225348997,8.4757,118.04,118.0,8.4782]
[1744225349196,38.77386292,118.07,117.99,8.86001454]
[1744225349396,38.77386292,118.07,117.99,8.8032]
[1744225349598,8.4766,118.03,117.99,8.8032]
[1744225349900,8.4766,118.03,117.99,70.8032]
[1744225350201,0.05476357,118.02,118.0,0.05853622]
[1744225351389,0.05476357,118.02,118.0,8.53673622]
[1744225351693,38.77386292,118.09,118.0,0.05853622]
[1744225351914,38.77386292,118.09,118.0,8.4782]
[1744225352088,38.77386292,118.09,117.99,47.57706292]
[1744225352292,38.77386292,118.09,118.01,8.4778]
[1744225352696,38.77386292,118.09,118.04,0.05792643]
[1744225353301,8.475,118.05,118.04,0.05792643]
[1744225354801,38.77386292,118.1,118.04,0.05792643]
[1744225355096,38.77386292,118.08,118.0,62.0]
[1744225355297,62.72,118.09,118.06,0.05389074]
[1744225355604,8.4739,118.07,118.0,38.77386292]
[1744225355804,38.91756292,118.12,118.06,0.06092333]
[1744225355998,38.91756292,118.12,118.03,8.4758]
[1744225356197,38.91756292,118.12,118.08,0.06285101]
[1744225356702,8.4721,118.09,118.08,0.06285101]
[1744225357093,8.46,118.09,117.99,8.8032]
[1744225357298,38.77386292,118.03,117.95,18.71]
[1744225357502,101.49386292,118.03,117.95,18.71]
[1744225357702,38.77386292,118.01,117.95,18.71]
[1744225357896,38.77386292,118.01,117.94,8.6295]
[1744225358101,101.49386292,118.03,117.94,17.112]
[1744225358298,0.0601783,117.99,117.96,0.0631912]
[1744225360102,8.5400783,117.99,117.96,0.0631912]
[1744225360302,0.0601783,117.99,117.96,0.0631912]
[1744225361103,8.5397783,117.99,117.96,0.0631912]
[1744225361403,0.0601783,117.99,117.97,8.4807]
[1744225361712,0.0601783,117.99,117.96,0.0631912]
[1744225362707,8.4807,117.98,117.96,0.0631912]
[1744225363111,0.0601783,117.99,117.96,0.0631912]
[1744225363612,8.4808,117.97,117.96,0.0631912]
[1744225364108,0.0601783,117.99,117.96,0.0631912]
[1744225364314,38.77386292,118.07,117.96,38.83705412]
[1744225364507,38.77386292,118.07,117.97,4.5254]
[1744225364706,8.4779,118.01,117.97,4.5254]
[1744225364907,62.42,118.1,118.0,38.77386292]
[1744225365107,38.77386292,118.09,118.01,4.5477]
[1744225365309,62.42,118.1,118.02,38.77386292]
[1744225365513,62.42,118.1,118.04,0.06387695]
[1744225367017,8.4746,118.06,118.04,0.06387695]
[1744225368415,101.19386292,118.1,118.04,0.06387695]
[1744225369026,38.77386292,118.06,117.98,141.1]
[1744225369212,38.77386292,118.08,117.98,8.8167]
[1744225369415,8.4771,118.03,117.98,17.2963]
[1744225369612,38.77386292,118.08,117.98,8.8167]
[1744225369912,38.77386292,118.06,117.98,8.8167]
[1744225370112,8.4776,118.02,117.98,17.2966]
[1744225370313,38.77386292,118.06,118.01,0.05975104]
[1744225370715,0.05653333,118.05,118.01,0.05975104]
[1744225371122,8.4772,118.02,118.01,0.05975104]
[1744225372622,38.77386292,118.02,117.93,12.9335]
[1744225372926,38.77386292,118.0,117.88,751.34]
[1744225373110,8.4832,117.94,117.9,17.0357]
[1744225373310,62.42,117.99,117.91,38.77386292]
[1744225373526,62.42,117.99,117.92,8.484]
[1744225373720,0.06305789,117.96,117.94,0.05943249]
[1744225374623,0.06305789,117.96,117.95,8.4822]
[1744225374926,8.4796,117.99,117.95,8.4822]
[1744225375419,101.19386292,118.04,117.96,70.4811]
[1744225375617,8.4787,118.0,117.96,70.4811]
[1744225375814,101.19386292,118.04,117.96,62.0]
[1744225376021,101.19386292,118.04,117.97,0.05773427]
[1744225376022,8.48,117.98,117.97,0.05773427]
[1744225376220,62.44,117.99,117.89,42.99726292]
[1744225376925,62.44,117.99,117.91,8.485]
[1744225377121,62.44,117.99,117.91,38.77386292]
[1744225377324,0.05623664,117.96,117.94,0.05569231]
[1744225378127,8.53813664,117.96,117.94,0.05569231]
[1744225378423,0.05623664,117.96,117.94,0.05569231]
[1744225378629,0.05623664,117.96,117.94,0.02909231]
[1744225378823,8.4822,117.95,117.94,0.02909231]
[1744225379714,38.83009956,117.96,117.87,62.0]
[1744225379928,38.77386292,117.96,117.87,62.0]
[1744225380429,8.4848,117.92,117.87,62.0]
[1744225380625,8.4848,117.92,117.87,70.4875]
[1744225380930,0.05603425,117.91,117.88,38.83411852]
[1744225381230,38.77386292,117.98,117.87,63.47595216]
[1744225381424,38.77386292,117.98,117.87,62.0]
[1744225381630,8.4847,117.92,117.87,62.0]
[1744225381815,38.77386292,117.98,117.87,62.0]
[1744225382021,8.4842,117.93,117.87,62.0]
[1744225382227,8.4842,117.93,117.91,0.05342252]
[1744225382620,8.4843,117.92,117.91,0.05342252]
[1744225386030,8.53820225,117.93,117.91,0.05342252]
[1744225386224,0.05430225,117.93,117.91,0.05342252]
[1744225387034,1.55236374,117.99,117.91,0.05342252]
[1744225387236,1.55236374,117.99,117.91,8.9728]
[1744225388122,1.55236374,117.99,117.91,27.7628]
[1744225388321,0.06328704,117.96,117.94,0.05599582]
[1744225388535,101.23386292,118.02,117.94,0.05599582]
[1744225388740,0.05623642,117.96,117.94,0.05599582]
[1744225388934,8.4805,117.98,117.94,0.05599582]
[1744225389237,0.06249412,117.96,117.94,0.05599582]
[1744225389438,101.23386292,118.02,117.94,0.05599582]
[1744225389628,0.06285937,117.96,117.94,0.05599582]
[1744225389830,38.77386292,118.02,117.94,0.05599582]
[1744225390040,0.1716,118.04,117.94,38.77386292]
[1744225390236,38.77386292,118.06,117.96,38.77386292]
[1744225390441,62.46,118.07,117.98,38.77386292]
[1744225390637,62.46,118.07,117.99,4.3042]
[1744225390828,38.77386292,118.1,117.99,4.3042]
[1744225391026,1.55167346,118.09,117.99,4.3042]
[1744225391231,38.77386292,118.1,118.03,0.05807577]
[1744225391734,8.4755,118.05,118.03,0.05807577]
[1744225392041,40.24818931,118.14,118.03,0.05807577]
[1744225392226,1.55108063,118.13,118.04,38.77386292]
[1744225392431,178.20009056,118.15,118.07,0.06171388]
[1744225392641,8.4707,118.11,118.07,8.4732]
[1744225392836,178.20009056,118.15,118.1,0.05415175]
[1744225393038,1.55096668,118.14,118.05,8.7744]
[1744225393230,8.4713,118.11,118.06,8.4739]
[1744225393441,178.20009056,118.15,118.05,8.7744]
[1744225393641,178.20009056,118.15,118.07,0.06289085]
[1744225393945,178.20009056,118.15,118.05,8.7744]
[1744225393946,38.77386292,118.13,118.05,4.4909]
[1744225394133,38.77386292,118.11,118.05,4.4909]
[1744225394337,100.89386292,118.11,118.05,4.4909]
[1744225394947,8.4741,118.07,118.05,4.4909]
[1744225395146,62.12,118.11,118.02,4.2835]
[1744225395336,0.0570532,118.07,118.05,0.05473801]
[1744225395532,8.4743,118.06,118.05,0.05473801]
[1744225396452,0.0570532,118.07,118.05,0.05473801]
[1744225396634,0.0570532,118.07,118.05,8.52963801]
[1744225397246,0.0570532,118.07,118.06,8.4743]
[1744225397550,8.4716,118.1,118.06,4.27]
[1744225397739,8.4716,118.1,118.06,12.7442]
[1744225397938,610.44,118.14,118.06,4.27]
[1744225398547,8.4704,118.12,118.09,0.06124197]
[1744225398844,610.44,118.14,118.09,0.06124197]
[1744225399939,649.21386292,118.14,118.09,0.06124197]
[1744225400244,1.55096356,118.13,118.09,0.06124197]
[1744225400551,38.77386292,118.12,118.09,0.06124197]
[1744225400953,649.21386292,118.14,118.09,0.06124197]
[1744225401247,1.55017854,118.13,118.09,0.06124197]
[1744225401451,610.44,118.14,118.09,0.06124197]
[1744225401752,8.4714,118.1,118.09,0.06124197]
[1744225402646,38.77386292,118.11,118.03,8.8848]
[1744225402943,38.77386292,118.13,118.03,8.8848]
[1744225402944,1.54584162,118.1,118.03,8.8848]
[1744225403137,8.4719,118.1,118.03,8.8848]
[1744225403639,8.4704,118.12,118.04,38.77386292]
[1744225403849,0.06424799,118.08,118.05,0.05514828]
[1744225404345,0.05777979,118.08,118.07,8.4736]
[1744225405240,0.05777979,118.08,118.05,0.06122071]
[1744225406755,0.05777979,118.08,118.06,8.4737]
[1744225407339,0.05777979,118.08,118.07,8.4736]
[1744225407846,0.05777979,118.08,118.05,0.06122071]
[1744225408552,38.77386292,118.07,117.99,8.7381]
[1744225408740,38.77386292,118.05,117.97,4.602]
[1744225408936,38.77386292,118.05,117.94,38.77386292]
[1744225408937,62.08,118.04,117.94,47.51196292]
[1744225409149,8.4775,118.02,117.94,52.11396292]
[1744225409349,8.4775,118.02,117.94,13.3401]
[1744225409655,8.4775,118.02,117.98,8.48]
[1744225409849,0.06319287,117.99,117.97,0.05942421]
[1744225410150,62.08,118.04,117.97,0.05942421]
[1744225410337,610.04,118.07,117.97,0.05942421]
[1744225410545,8.4755,118.05,117.96,38.77386292]
[1744225411360,8.4755,118.05,118.01,8.4779]
[1744225411361,0.05541866,118.02,118.01,8.4779]
[1744225412049,0.05541866,118.02,118.0,8.54023497]
[1744225412853,0.05541866,118.02,118.0,0.06193497]
[1744225413749,0.05541866,118.02,118.01,8.4779]
[1744225413950,0.05541866,118.02,118.0,0.06193497]
[1744225414349,8.4779,118.01,118.0,0.06193497]
[1744225415356,0.05541866,118.02,118.0,0.06193497]
[1744225416844,0.05541866,118.02,117.96,18.79]
[1744225416845,23.84951634,118.01,117.96,18.79]
[1744225417048,23.84951634,118.0,117.96,18.79]
[1744225417353,24.01261634,118.02,117.96,18.79]
[1744225417555,8.4808,117.97,117.96,18.79]
[1744225417856,23.84951634,117.98,117.92,8.484]
[1744225418047,23.91336084,117.98,117.95,0.05973032]
[1744225418357,0.0638445,117.98,117.95,0.05973032]
[1744225419552,62.1,117.97,117.95,0.05973032]
[1744225419854,8.4815,117.96,117.95,0.05973032]
[1744225420344,62.1,117.97,117.95,0.05973032]
[1744225420546,0.0638445,117.98,117.95,0.05973032]
[1744225420745,0.0638445,117.98,117.95,8.54153032]
[1744225421157,0.0638445,117.98,117.95,0.05973032]
[1744225421746,0.0638445,117.98,117.96,8.4811]
[1744225421953,0.0638445,117.98,117.95,0.05973032]
[1744225422352,0.0638445,117.98,117.96,8.4808]
[1744225422855,0.0638445,117.98,117.96,4.2595]
[1744225423461,0.0638445,117.98,117.97,8.4808]
[1744225423649,0.0638445,117.98,117.96,4.2595]
[1744225424564,0.0638445,117.98,117.97,8.4808]
[1744225426068,0.0638445,117.98,117.96,16.9365]
[1744225426364,23.84951634,118.08,117.97,23.84951634]
[1744225426554,23.84951634,118.08,117.96,8.4554]
[1744225426555,24.01401634,118.06,117.96,8.4554]
[1744225427165,8.4774,118.02,117.98,8.4795]
[1744225427368,8.53248092,118.02,118.0,0.06141935]
[1744225427870,0.05508092,118.02,118.0,0.06141935]
[1744225428366,0.05508092,118.02,118.01,8.4779]
[1744225429366,61.82,118.08,118.0,0.06141935]
[1744225429672,61.82,118.08,118.01,23.84951634]
[1744225429851,61.82,118.08,118.03,8.4758]
[1744225430049,61.82,118.08,118.02,4.1748]
[1744225430258,8.4762,118.04,118.02,4.1748]
[1744225430463,8.4762,118.04,118.0,12.9594]
[1744225430664,8.4762,118.04,118.02,0.06491898]
[1744225431266,23.84951634,118.06,118.02,0.06491898]
[1744225431455,85.66951634,118.08,118.02,0.06491898]
[1744225431655,8.4764,118.03,118.02,0.06491898]
[1744225432154,85.66951634,118.08,118.02,0.06491898]
[1744225432356,8.4761,118.04,118.02,0.06491898]
[1744225432865,8.4754,118.05,118.02,0.06491898]
[1744225433055,85.66951634,118.08,118.02,0.06491898]
[1744225433562,8.4761,118.04,118.02,0.06491898]
[1744225434866,8.4764,118.03,118.02,0.06491898]
[1744225435164,85.66951634,118.08,118.02,0.06491898]
[1744225435754,23.84951634,118.04,118.02,0.06491898]
[1744225435951,23.84951634,118.04,117.9,768.4909]
[1744225435952,8.4793,117.99,117.9,768.4909]
[1744225436159,8.4793,117.99,117.92,13.1314]
[1744225436353,8.4793,117.99,117.93,18.81]
[1744225436558,23.84951634,118.02,117.93,18.81]
[1744225436758,85.64951634,118.03,117.93,18.81]
[1744225436975,8.4791,118.0,117.96,8.4813]
[1744225437266,0.05817558,117.99,117.97,0.05583494]
[1744225438767,61.82,117.98,117.93,18.81]
[1744225439077,23.84951634,117.97,117.93,18.81]
[1744225439967,0.05355323,117.96,117.94,0.06114083]
[1744225440368,8.4828,117.95,117.94,0.06114083]
[1744225442067,8.53535323,117.96,117.94,0.06114083]
[1744225442267,0.05355323,117.96,117.94,0.06114083]
[1744225442868,8.4822,117.95,117.94,0.06114083]